lending/lending_fUSD_20241229
["ID","MTS","AMOUNT","RATE_DAILY","PERIOD"]
[347131338,1735513858898,-500.0,0.00014092,2]
[347131339,1735513858909,-500.0,0.00014092,2]
[347131340,1735513858920,-500.0,0.00014092,2]
[347131341,1735513858931,-539.25,0.00014092,2]
[347131342,1735513858943,-533.86,0.00014092,2]
[347131343,1735513858954,-500.0,0.00014092,2]
[347131344,1735513858965,-500.0,0.00014092,2]
[347131345,1735513858977,-586.32,0.00014092,2]
[347131346,1735513858988,-500.0,0.00014092,2]
[347131347,1735513858999,-500.0,0.00014092,2]
[347131348,1735513859010,-573.92,0.00014092,2]
[347131349,1735513859022,-500.0,0.00014092,2]
[347131350,1735513859036,-523.72,0.00014092,2]
[347131351,1735513859047,-500.0,0.00014092,2]
[347131352,1735513859059,-500.0,0.00014092,2]
[347131353,1735513859074,-500.0,0.00014092,2]
[347131354,1735513859086,-500.0,0.00014092,2]
[347131355,1735513859098,-500.0,0.00014092,2]
[347131356,1735513859112,-660.63,0.00014092,2]
[347131357,1735513859124,-500.0,0.00014092,2]
[347131358,1735513859135,-500.0,0.00014092,2]
[347131359,1735513859146,-500.0,0.00014092,2]
[347131360,1735513859158,-592.25,0.00014092,2]
[347131361,1735513859170,-500.0,0.00014092,2]
[347131362,1735513859182,-500.0,0.00014092,2]
[347131363,1735513859194,-547.1,0.00014092,2]
[347131364,1735513859206,-510.32,0.00014092,2]
[347131365,1735513859219,-1224.55,0.00014092,2]
[347131366,1735513859230,-500.0,0.00014092,2]
[347131367,1735513859242,-500.0,0.00014092,2]
[347131368,1735513859253,-1432.69,0.00014092,2]
[347131369,1735513859266,-3039.39,0.00014092,2]
[347131370,1735513859278,-500.0,0.00014092,2]
[347131371,1735513859289,-8433.32,0.00014092,2]
[347131372,1735513859301,-541.78,0.00014092,2]
[347131373,1735513859312,-572.58582255,0.00014092,2]
[347131374,1735513859324,-500.0,0.00014092,2]
[347131375,1735513859336,-500.0,0.00014092,2]
[347131376,1735513859349,-1943.94,0.00014092,2]
[347131377,1735513859361,-500.0,0.00014092,2]
[347131378,1735513859372,-500.0,0.00014092,2]
[347131379,1735513859384,-1359.74,0.00014092,2]
[347131380,1735513859396,-500.0,0.00014092,2]
[347131381,1735513859407,-500.0,0.00014092,2]
[347131382,1735513859419,-1524.25,0.00014092,2]
[347131383,1735513859431,-708.29,0.00014092,2]
[347131384,1735513859442,-683.2,0.00014092,2]
[347131385,1735513859453,-500.0,0.00014092,2]
[347131386,1735513859465,-500.0,0.00014092,2]
[347131387,1735513859476,-1882.26,0.00014092,2]
[347131388,1735513859487,-725.33,0.00014092,2]
[347131389,1735513859498,-1107.81,0.00014092,2]
[347131390,1735513859509,-500.0,0.00014092,2]
[347131391,1735513859520,-500.0,0.00014092,2]
[347131392,1735513859531,-500.0,0.00014092,2]
[347131393,1735513859542,-500.0,0.00014092,2]
[347131394,1735513859553,-3828.78,0.00014092,2]
[347131395,1735513859563,-500.0,0.00014092,2]
[347131396,1735513859574,-661.27,0.00014092,2]
[347131397,1735513859585,-2843.3,0.00014092,2]
[347131398,1735513859597,-500.0,0.00014092,2]
[347131399,1735513859607,-1012.88,0.00014092,2]
[347131400,1735513859618,-545.53,0.00014092,2]
[347131401,1735513859629,-810.18,0.00014092,2]
[347131402,1735513859641,-1448.78,0.00014092,2]
[347131403,1735513859652,-500.0,0.00014092,2]
[347131404,1735513859663,-697.5,0.00014092,2]
[347131405,1735513859675,-702.72,0.00014092,2]
[347131406,1735513859686,-500.0,0.00014092,2]
[347131407,1735513859697,-500.0,0.00014092,2]
[347131408,1735513859708,-1224.42,0.00014092,2]
[347131409,1735513859719,-500.0,0.00014092,2]
[347131410,1735513859730,-500.0,0.00014092,2]
[347131411,1735513859741,-500.0,0.00014092,2]
[347131412,1735513859751,-962.4,0.00014092,2]
[347131413,1735513859762,-500.0,0.00014092,2]
[347131414,1735513859772,-500.0,0.00014092,2]
[347131415,1735513859784,-917.82,0.00014092,2]
[347131416,1735513859795,-657.42,0.00014092,2]
[347131417,1735513859806,-500.0,0.00014092,2]
[347131418,1735513859817,-500.0,0.00014092,2]
[347131419,1735513859829,-500.0,0.00014092,2]
[347131420,1735513859840,-500.0,0.00014092,2]
[347131421,1735513859851,-707.32,0.00014092,2]
[347131422,1735513859862,-500.0,0.00014092,2]
[347131423,1735513859873,-500.0,0.00014092,2]
[347131424,1735513859884,-2615.99,0.00014092,2]
[347131425,1735513859895,-500.0,0.00014092,2]
[347131426,1735513859906,-555.87,0.00014092,2]
[347131427,1735513859917,-500.0,0.00014092,2]
[347131428,1735513859928,-572.08,0.00014092,2]
[347131429,1735513859939,-500.0,0.00014092,2]
[347131430,1735513859949,-500.0,0.00014093,2]
[347131431,1735513859960,-500.0,0.00014093,2]
[347131432,1735513859971,-500.0,0.00014093,2]
[347131433,1735513859982,-500.0,0.00014093,2]
[347131434,1735513859992,-500.0,0.00014093,2]
[347131435,1735513860003,-500.0,0.00014093,2]
[347131436,1735513860014,-500.0,0.00014093,2]
[347131437,1735513860025,-654.73,0.00014093,2]
[347131438,1735513860040,-500.0,0.00014093,2]
[347131439,1735513860051,-500.0,0.00014093,2]
[347131440,1735513860061,-500.0,0.00014093,2]
[347131441,1735513860073,-500.0,0.00014093,2]
[347131442,1735513860084,-500.0,0.00014093,2]
[347131443,1735513860095,-500.0,0.00014093,2]
[347131444,1735513860106,-500.0,0.00014093,2]
[347131445,1735513860118,-500.0,0.00014093,2]
[347131446,1735513860129,-500.0,0.00014093,2]
[347131447,1735513860139,-500.0,0.00014093,2]
[347131448,1735513860150,-500.0,0.00014093,2]
[347131449,1735513860163,-500.0,0.00014093,2]
[347131450,1735513860175,-500.0,0.00014093,2]
[347131451,1735513860186,-500.0,0.00014093,2]
[347131452,1735513860197,-500.0,0.00014093,2]
[347131453,1735513860208,-500.0,0.00014093,2]
[347131454,1735513860219,-500.0,0.00014093,2]
[347131455,1735513860230,-500.0,0.00014093,2]
[347131456,1735513860241,-500.0,0.00014093,2]
[347131457,1735513860252,-500.0,0.00014093,2]
[347131458,1735513860263,-500.0,0.00014093,2]
[347131459,1735513860274,-500.0,0.00014093,2]
[347131460,1735513860285,-500.0,0.00014093,2]
[347131461,1735513860295,-413.72027456,0.00014093,2]
[347131462,1735513860306,-500.0,0.00014093,2]
[347131463,1735513860317,-500.0,0.00014093,2]
[347131464,1735513860328,-500.0,0.00014093,2]
[347131465,1735513860338,-500.0,0.00014093,2]
[347131466,1735513860351,-500.0,0.00014093,2]
[347131467,1735513860362,-500.0,0.00014093,2]
[347131468,1735513860374,-500.0,0.00014093,2]
[347131469,1735513860386,-500.0,0.00014093,2]
[347131470,1735513860397,-500.0,0.00014093,2]
[347131471,1735513860408,-500.0,0.00014093,2]
[347131472,1735513860419,-300.07374634,0.00014093,2]
[347131473,1735513860680,-500.0,0.00014093,2]
[347131474,1735513860791,-500.0,0.00014093,2]
[347131475,1735513860806,-500.0,0.00014093,2]
[347131476,1735513860815,-500.0,0.00014093,2]
[347131477,1735513860824,-500.0,0.00014093,2]
[347131478,1735513860833,-500.0,0.00014093,2]
[347131479,1735513860843,-500.0,0.00014093,2]
[347131480,1735513860853,-500.0,0.00014093,2]
[347131481,1735513860862,-500.0,0.00014093,2]
[347131482,1735513860871,-500.0,0.00014093,2]
[347131483,1735513860880,-500.0,0.00014093,2]
[347131484,1735513860889,-500.0,0.00014093,2]
[347131485,1735513860898,-500.0,0.00014093,2]
[347131486,1735513860907,-419.49766631,0.00014093,2]
[347131487,1735513860915,-500.0,0.00014093,2]
[347131488,1735513860924,-500.0,0.00014093,2]
[347131489,1735513860933,-500.0,0.00014093,2]
[347131490,1735513860941,-500.0,0.00014093,2]
[347131491,1735513860950,-500.0,0.00014093,2]
[347131492,1735513860958,-583.3,0.00014093,2]
[347131493,1735513860967,-500.0,0.00014093,2]
[347131494,1735513860976,-500.0,0.00014093,2]
[347131495,1735513860985,-500.0,0.00014093,2]
[347131496,1735513860994,-626.39,0.00014093,2]
[347131497,1735513861004,-540.98,0.00014093,2]
[347131498,1735513861013,-500.0,0.00014093,2]
[347131499,1735513861022,-572.95,0.00014093,2]
[347131500,1735513861033,-500.0,0.00014093,2]
[347131501,1735513861042,-500.0,0.00014093,2]
[347131502,1735513861051,-500.0,0.00014093,2]
[347131503,1735513861059,-500.0,0.00014093,2]
[347131504,1735513861068,-582.63,0.00014093,2]
[347131505,1735513861077,-500.0,0.00014093,2]
[347131506,1735513861086,-603.01,0.00014093,2]
[347131507,1735513861095,-500.0,0.00014093,2]
[347131508,1735513861104,-500.0,0.00014093,2]
[347131509,1735513861113,-500.0,0.00014093,2]
[347131510,1735513861123,-538.14,0.00014093,2]
[347131511,1735513861132,-554.11,0.00014093,2]
[347131512,1735513861141,-500.0,0.00014093,2]
[347131513,1735513861151,-500.0,0.00014093,2]
[347131514,1735513861160,-500.0,0.00014093,2]
[347131515,1735513861169,-500.0,0.00014093,2]
[347131516,1735513861179,-500.0,0.00014093,2]
[347131517,1735513861189,-500.0,0.00014093,2]
[347131518,1735513861198,-500.0,0.00014093,2]
[347131519,1735513861207,-500.0,0.00014093,2]
[347131520,1735513861217,-500.0,0.00014093,2]
[347131521,1735513861225,-508.11,0.00014093,2]
[347131522,1735513861235,-500.0,0.00014093,2]
[347131523,1735513861244,-506.37,0.00014093,2]
[347131524,1735513861254,-500.0,0.00014093,2]
[347131525,1735513861263,-500.0,0.00014093,2]
[347131526,1735513861272,-500.0,0.00014093,2]
[347131527,1735513861281,-500.0,0.00014093,2]
[347131528,1735513861291,-500.0,0.00014093,2]
[347131529,1735513861300,-500.0,0.00014093,2]
[347131530,1735513861310,-649.88,0.00014093,2]
[347131531,1735513861319,-599.37,0.00014093,2]
[347131532,1735513861328,-500.0,0.00014093,2]
[347131533,1735513861337,-500.0,0.00014093,2]
[347131534,1735513861347,-500.0,0.00014093,2]
[347131535,1735513861356,-500.0,0.00014093,2]
[347131536,1735513861366,-408.92503078,0.00014093,2]
[347131537,1735513861375,-500.0,0.00014093,2]
[347131538,1735513861385,-500.0,0.00014093,2]
[347131539,1735513861394,-696.08,0.00014093,2]
[347131540,1735513861403,-500.0,0.00014093,2]
[347131541,1735513861412,-500.0,0.00014093,2]
[347131542,1735513861422,-500.0,0.00014093,2]
[347131543,1735513861431,-500.0,0.00014093,2]
[347131544,1735513861440,-537.64,0.00014093,2]
[347131545,1735513861449,-500.0,0.00014093,2]
[347131546,1735513861459,-583.6,0.00014093,2]
[347131547,1735513861468,-500.0,0.00014093,2]
[347131548,1735513861478,-500.0,0.00014093,2]
[347131549,1735513861487,-844.12,0.00014093,2]
[347131550,1735513861497,-500.0,0.00014093,2]
[347131551,1735513861507,-500.0,0.00014093,2]
[347131552,1735513861517,-500.0,0.00014093,2]
[347131553,1735513861526,-500.0,0.00014093,2]
[347131554,1735513861535,-500.0,0.00014093,2]
[347131555,1735513861545,-500.0,0.00014093,2]
[347131556,1735513861555,-500.0,0.00014093,2]
[347131557,1735513861563,-500.0,0.00014093,2]
[347131558,1735513861573,-754.97,0.00014093,2]
[347131559,1735513861582,-500.0,0.00014093,2]
[347131560,1735513861592,-500.0,0.00014093,2]
[347131561,1735513861602,-500.0,0.00014093,2]
[347131562,1735513861611,-682.23,0.00014093,2]
[347131563,1735513861621,-500.0,0.00014093,2]
[347131564,1735513861631,-500.0,0.00014093,2]
[347131565,1735513861640,-519.93,0.00014093,2]
[347131566,1735513861649,-500.0,0.00014093,2]
[347131567,1735513861659,-500.0,0.00014093,2]
[347131568,1735513861668,-541.92,0.00014093,2]
[347131569,1735513861678,-500.0,0.00014093,2]
[347131570,1735513861688,-500.0,0.00014093,2]
[347131571,1735513861697,-500.0,0.00014093,2]
[347131572,1735513861707,-500.0,0.00014093,2]
[347131573,1735513861716,-500.0,0.00014093,2]
[347131574,1735513861726,-840.98,0.00014094,2]
[347131575,1735513861736,-805.94,0.00014094,2]
[347131576,1735513861745,-947.12,0.00014094,2]
[347131577,1735513861755,-947.12,0.00014094,2]
[347131578,1735513861764,-979.56,0.00014094,2]
[347131579,1735513861774,-1021.13,0.00014094,2]
[347131580,1735513861784,-606.62,0.00014094,2]
[347131581,1735513861792,-1378.68,0.00014094,2]
[347131582,1735513861802,-893.77,0.00014094,2]
[347131583,1735513861811,-3846.3,0.00014094,2]
[347131584,1735513861821,-2457.98,0.00014094,2]
[347131585,1735513861830,-500.0,0.00014094,2]
[347131586,1735513861839,-1066.98,0.00014094,2]
[347131587,1735513861849,-6181.43,0.00014094,2]
[347131588,1735513861858,-693.5,0.00014094,2]
[347131589,1735513861868,-500.0,0.00014094,2]
[347131590,1735513861877,-938.69,0.00014094,2]
[347131591,1735513861886,-590.01,0.00014094,2]
[347131592,1735513861895,-500.0,0.00014094,2]
[347131593,1735513861904,-1212.66,0.00014094,2]
[347131594,1735513861913,-735.59,0.00014094,2]
[347131595,1735513861923,-1275.93,0.00014094,2]
[347131596,1735513861932,-500.0,0.00014094,2]
[347131597,1735513861941,-774.07,0.00014094,2]
[347131598,1735513861950,-1156.39,0.00014094,2]
[347131599,1735513861959,-838.25,0.00014094,2]
[347131600,1735513861968,-677.82,0.00014094,2]
[347131601,1735513861977,-1865.95,0.00014094,2]
[347131602,1735513861986,-871.19,0.00014094,2]
[347131603,1735513861995,-1788.2,0.00014094,2]
[347131604,1735513862004,-625.85,0.00014094,2]
[347131605,1735513862013,-1362.71,0.00014094,2]
[347131606,1735513862022,-891.32,0.00014094,2]
[347131607,1735513862033,-1439.24,0.00014094,2]
[347131608,1735513862043,-500.0,0.00014094,2]
[347131609,1735513862051,-1812.08,0.00014094,2]
[347131610,1735513862061,-1567.54,0.00014094,2]
[347131611,1735513862070,-624.73,0.00014094,2]
[347131612,1735513862079,-3835.35,0.00014094,2]
[347131613,1735513862088,-1001.55,0.00014094,2]
[347131614,1735513862100,-877.54,0.00014094,2]
[347131615,1735513862109,-500.0,0.00014094,2]
[347131616,1735513862118,-500.0,0.00014094,2]
[347131617,1735513862127,-1217.84,0.00014094,2]
[347131618,1735513862138,-1939.31,0.00014094,2]
[347131619,1735513862146,-500.0,0.00014094,2]
[347131620,1735513862156,-547.75,0.00014094,2]
[347131621,1735513862166,-888.22,0.00014094,2]
[347131622,1735513862175,-5002.69,0.00014094,2]
[347131623,1735513862184,-500.0,0.00014094,2]
[347131624,1735513862195,-7272.29,0.00014094,2]
[347131625,1735513862204,-500.0,0.00014094,2]
[347131626,1735513862213,-1518.64,0.00014094,2]
[347131627,1735513862223,-2059.74,0.00014094,2]
[347131628,1735513862232,-2613.24,0.00014094,2]
[347131629,1735513862242,-3702.63,0.00014094,2]
[347131630,1735513862252,-641.98,0.00014094,2]
[347131631,1735513862261,-1512.55,0.00014094,2]
[347131632,1735513862270,-1834.88,0.00014094,2]
[347131633,1735513862279,-1582.24,0.00014094,2]
[347131634,1735513862288,-1877.52,0.00014095,2]
[347131635,1735513862297,-1756.02,0.00014095,2]
[347131636,1735513862307,-1348.82,0.00014095,2]
[347131637,1735513862316,-1875.34,0.00014095,2]
[347131638,1735513862325,-1581.07,0.00014095,2]
[347131639,1735513862335,-22949.65,0.00014095,2]
[347131640,1735513862344,-3875.75,0.00014095,2]
[347131641,1735513862353,-3555.78,0.00014095,2]
[347131642,1735513862362,-1906.83,0.00014095,2]
[347131643,1735513862371,-5251.46,0.00014095,2]
[347131644,1735513862380,-500.0,0.00014132,2]
[347131645,1735513862389,-500.0,0.00014233,2]
[347131646,1735513862398,-500.0,0.00014234,2]
[347131647,1735513862407,-500.0,0.00014234,2]
[347131648,1735513862416,-500.0,0.00014234,2]
[347131649,1735513862425,-500.0,0.00014234,2]
[347131650,1735513862434,-500.0,0.00014234,2]
[347131651,1735513862443,-500.0,0.00014234,2]
[347131652,1735513862452,-500.0,0.00014234,2]
[347131653,1735513862461,-500.0,0.00014234,2]
[347131654,1735513862470,-500.0,0.00014234,2]
[347131655,1735513862479,-500.0,0.00014234,2]
[347131656,1735513862488,-500.0,0.00014234,2]
[347131657,1735513862497,-501.7,0.00014234,2]
[347131658,1735513862506,-500.0,0.00014234,2]
[347131659,1735513862514,-500.0,0.00014234,2]
[347131660,1735513862523,-625.91,0.00014234,2]
[347131661,1735513862532,-500.0,0.00014234,2]
[347131662,1735513862541,-500.0,0.00014234,2]
[347131663,1735513862549,-500.0,0.00014234,2]
[347131664,1735513862559,-500.0,0.00014234,2]
[347131665,1735513862568,-687.9,0.00014234,2]
[347131666,1735513862577,-500.0,0.00014234,2]
[347131667,1735513862586,-500.0,0.00014234,2]
[347131668,1735513862595,-500.0,0.00014234,2]
[347131669,1735513862606,-500.0,0.00014234,2]
[347131670,1735513862615,-500.0,0.00014234,2]
[347131671,1735513862624,-500.0,0.00014234,2]
[347131672,1735513862634,-500.0,0.00014234,2]
[347131673,1735513862643,-685.09,0.00014234,2]
[347131674,1735513862652,-500.0,0.00014234,2]
[347131675,1735513862662,-500.0,0.00014234,2]
[347131676,1735513862671,-541.99,0.00014234,2]
[347131677,1735513862680,-500.0,0.00014234,2]
[347131678,1735513862690,-500.0,0.00014234,2]
[347131679,1735513862699,-500.0,0.00014234,2]
[347131680,1735513862709,-500.0,0.00014234,2]
[347131681,1735513862718,-778.2,0.00014234,2]
[347131682,1735513862727,-500.0,0.00014234,2]
[347131683,1735513862736,-500.0,0.00014234,2]
[347131684,1735513862745,-500.0,0.00014234,2]
[347131685,1735513862755,-521.36,0.00014234,2]
[347131686,1735513862764,-500.0,0.00014234,2]
[347131687,1735513862773,-500.0,0.00014234,2]
[347131688,1735513862782,-729.39,0.00014234,2]
[347131689,1735513862791,-738.34,0.00014234,2]
[347131690,1735513862801,-500.0,0.00014234,2]
[347131691,1735513862810,-500.0,0.00014234,2]
[347131692,1735513862820,-500.0,0.00014234,2]
[347131693,1735513862829,-500.0,0.00014234,2]
[347131694,1735513862839,-500.0,0.00014234,2]
[347131695,1735513862849,-524.5,0.00014234,2]
[347131696,1735513862859,-500.0,0.00014234,2]
[347131697,1735513862869,-700.47,0.00014234,2]
[347131698,1735513862878,-594.83,0.00014234,2]
[347131699,1735513862888,-821.82,0.00014234,2]
[347131700,1735513862897,-743.33,0.00014234,2]
[347131701,1735513862907,-500.0,0.00014234,2]
[347131702,1735513862916,-531.11,0.00014234,2]
[347131703,1735513862926,-500.0,0.00014234,2]
[347131704,1735513862935,-820.66,0.00014234,2]
[347131705,1735513862944,-500.0,0.00014234,2]
[347131706,1735513862954,-740.03,0.00014234,2]
[347131707,1735513862963,-744.0,0.00014234,2]
[347131708,1735513862973,-1108.03,0.00014234,2]
[347131709,1735513862982,-749.12,0.00014234,2]
[347131710,1735513862992,-735.47,0.00014234,2]
[347131711,1735513863001,-728.35,0.00014234,2]
[347131712,1735513863011,-1368.15,0.00014234,2]
[347131713,1735513863020,-992.27,0.00014234,2]
[347131714,1735513863031,-740.19,0.00014234,2]
[347131715,1735513863042,-868.29,0.00014234,2]
[347131716,1735513863051,-500.0,0.00014366,2]
[347131717,1735513863061,-500.0,0.00014366,2]
[347131718,1735513863070,-500.0,0.00014366,2]
[347131719,1735513863080,-500.0,0.00014366,2]
[347131720,1735513863089,-500.0,0.00014366,2]
[347131721,1735513863100,-500.0,0.00014366,2]
[347131722,1735513863112,-500.0,0.00014366,2]
[347131723,1735513863122,-500.0,0.00014366,2]
[347131724,1735513863132,-500.0,0.00014366,2]
[347131725,1735513863142,-500.0,0.00014366,2]
[347131726,1735513863153,-500.0,0.00014366,2]
[347131727,1735513863164,-500.0,0.00014366,2]
[347131728,1735513863174,-500.0,0.00014366,2]
[347131729,1735513863185,-539.25,0.00014366,2]
[347131730,1735513863195,-533.86,0.00014366,2]
[347131731,1735513863205,-500.0,0.00014366,2]
[347131732,1735513863216,-500.0,0.00014366,2]
[347131733,1735513863226,-586.32,0.00014366,2]
[347131734,1735513863236,-500.0,0.00014366,2]
[347131735,1735513863245,-500.0,0.00014366,2]
[347131736,1735513863255,-573.92,0.00014366,2]
[347131737,1735513863265,-500.0,0.00014366,2]
[347131738,1735513863274,-523.72,0.00014366,2]
[347131739,1735513863284,-500.0,0.00014366,2]
[347131740,1735513863294,-500.0,0.00014366,2]
[347131741,1735513863303,-500.0,0.00014366,2]
[347131742,1735513863313,-589.5146992,0.00014366,2]
[347131743,1735513863323,-500.0,0.00014366,2]
[347131744,1735513863333,-660.63,0.00014366,2]
[347131745,1735513863344,-500.0,0.00014366,2]
[347131746,1735513863354,-500.0,0.00014366,2]
[347131747,1735513863364,-500.0,0.00014366,2]
[347131748,1735513863375,-592.25,0.00014366,2]
[347131749,1735513863386,-500.0,0.00014366,2]
[347131750,1735513863396,-500.0,0.00014366,2]
[347131751,1735513863407,-547.1,0.00014366,2]
[347131752,1735513863417,-510.32,0.00014366,2]
[347131753,1735513863427,-1224.55,0.00014366,2]
[347131754,1735513863437,-500.0,0.00014366,2]
[347131755,1735513863447,-500.0,0.00014366,2]
[347131756,1735513863457,-1432.69,0.00014366,2]
[347131757,1735513863468,-3039.39,0.00014366,2]
[347131758,1735513863477,-500.0,0.00014366,2]
[347131759,1735513863487,-8433.32,0.00014366,2]
[347131760,1735513863496,-541.78,0.00014366,2]
[347131761,1735513863505,-500.0,0.00014366,2]
[347131762,1735513863516,-500.0,0.00014366,2]
[347131763,1735513863526,-1943.94,0.00014366,2]
[347131764,1735513863535,-500.0,0.00014366,2]
[347131765,1735513863544,-500.0,0.00014366,2]
[347131766,1735513863554,-1359.74,0.00014366,2]
[347131767,1735513863563,-500.0,0.00014366,2]
[347131768,1735513863573,-500.0,0.00014366,2]
[347131769,1735513863583,-1524.25,0.00014366,2]
[347131770,1735513863592,-708.29,0.00014366,2]
[347131771,1735513863602,-683.2,0.00014366,2]
[347131772,1735513863612,-500.0,0.00014366,2]
[347131773,1735513863622,-500.0,0.00014366,2]
[347131774,1735513863632,-1882.26,0.00014366,2]
[347131775,1735513863641,-725.33,0.00014366,2]
[347131776,1735513863651,-1107.81,0.00014366,2]
[347131777,1735513863660,-500.0,0.00014366,2]
[347131778,1735513863669,-500.0,0.00014366,2]
[347131779,1735513863678,-500.0,0.00014366,2]
[347131780,1735513863688,-500.0,0.00014366,2]
[347131781,1735513863698,-3828.78,0.00014366,2]
[347131782,1735513863708,-500.0,0.00014366,2]
[347131783,1735513863718,-661.27,0.00014366,2]
[347131784,1735513863727,-2843.3,0.00014366,2]
[347131785,1735513863737,-500.0,0.00014366,2]
[347131786,1735513863747,-1012.88,0.00014366,2]
[347131787,1735513863756,-545.53,0.00014366,2]
[347131788,1735513863766,-810.18,0.00014366,2]
[347131789,1735513863776,-1448.78,0.00014366,2]
[347131790,1735513863928,-500.0,0.00014366,2]
[347131791,1735513863968,-697.5,0.00014366,2]
[347131792,1735513863978,-702.72,0.00014366,2]
[347131793,1735513863988,-500.0,0.00014366,2]
[347131794,1735513863997,-500.0,0.00014366,2]
[347131795,1735513864006,-1224.42,0.00014366,2]
[347131796,1735513864016,-500.0,0.00014366,2]
[347131797,1735513864026,-500.0,0.00014366,2]
[347131798,1735513864038,-500.0,0.00014366,2]
[347131799,1735513864047,-962.4,0.00014366,2]
[347131800,1735513864057,-500.0,0.00014366,2]
[347131801,1735513864066,-500.0,0.00014366,2]
[347131802,1735513864077,-917.82,0.00014366,2]
[347131803,1735513864087,-657.42,0.00014366,2]
[347131804,1735513864096,-500.0,0.00014366,2]
[347131805,1735513864107,-500.0,0.00014366,2]
[347131806,1735513864116,-500.0,0.00014366,2]
[347131807,1735513864126,-500.0,0.00014366,2]
[347131808,1735513864135,-707.32,0.00014366,2]
[347131809,1735513864145,-334.79972671,0.00014366,2]
[347131810,1735513864155,-500.0,0.00014366,2]
[347131811,1735513864165,-2615.99,0.00014366,2]
[347131812,1735513864174,-500.0,0.00014366,2]
[347131813,1735513864184,-555.87,0.00014366,2]
[347131814,1735513864194,-500.0,0.00014366,2]
[347131815,1735513864204,-572.08,0.00014366,2]
[347131816,1735513864214,-500.0,0.00014367,2]
[347131817,1735513864224,-500.0,0.00014367,2]
[347131818,1735513864234,-500.0,0.00014367,2]
[347131819,1735513864245,-500.0,0.00014367,2]
[347131820,1735513864255,-500.0,0.00014367,2]
[347131821,1735513864265,-500.0,0.00014367,2]
[347131822,1735513864275,-294.11048592,0.00014367,2]
[347131823,1735513864286,-654.73,0.00014367,2]
[347131824,1735513864296,-500.0,0.00014367,2]
[347131825,1735513864306,-500.0,0.00014367,2]
[347131826,1735513864316,-500.0,0.00014367,2]
[347131827,1735513864326,-500.0,0.00014367,2]
[347131828,1735513864336,-500.0,0.00014367,2]
[347131829,1735513864347,-500.0,0.00014367,2]
[347131830,1735513864357,-500.0,0.00014367,2]
[347131831,1735513864367,-500.0,0.00014367,2]
[347131832,1735513864376,-500.0,0.00014367,2]
[347131833,1735513864386,-500.0,0.00014367,2]
[347131834,1735513864395,-500.0,0.00014367,2]
[347131835,1735513864405,-500.0,0.00014367,2]
[347131836,1735513864415,-500.0,0.00014367,2]
[347131837,1735513864425,-500.0,0.00014367,2]